[Event "*** Titled Tuesday Blitz"]
[Site "Chess.com"]
[Date "2018.09.04"]
[Round "5"]
[White "menor31"]
[Black "JoakimVonAnd"]
[Result "0-1"]
[WhiteElo "2449"]
[BlackElo "2376"]
[TimeControl "180+2"]
[EndTime "14:41:14 PDT"]
[Termination "JoakimVonAnd won on time"]

1. e4 {[%clk 0:02:58.3]} 1... c6 {[%clk 0:03:00.7]} 2. d4 {[%clk 0:02:58.6]}
2... d5 {[%clk 0:03:02.6]} 3. Nc3 {[%clk 0:02:59.1]} 3... dxe4 {[%clk
0:03:03.7]} 4. Nxe4 {[%clk 0:02:59.7]} 4... Bf5 {[%clk 0:03:04.8]} 5. Ng3 {[%clk
0:03:00.6]} 5... Bg6 {[%clk 0:03:05.3]} 6. Nf3 {[%clk 0:03:01.8]} 6... Nf6
{[%clk 0:03:05.2]} 7. Bd3 {[%clk 0:03:01.7]} 7... e6 {[%clk 0:03:05.6]} 8. h4
{[%clk 0:03:02.3]} 8... Bd6 {[%clk 0:03:04.6]} 9. h5 {[%clk 0:03:02.5]} 9...
Bxd3 {[%clk 0:03:04.8]} 10. Qxd3 {[%clk 0:03:03.3]} 10... Nbd7 {[%clk
0:02:53.3]} 11. Ne4 {[%clk 0:03:01.7]} 11... Nxe4 {[%clk 0:02:52]} 12. Qxe4
{[%clk 0:03:02.7]} 12... Nf6 {[%clk 0:02:53.5]} 13. Qh4 {[%clk 0:03:03.3]} 13...
h6 {[%clk 0:02:53]} 14. Bd2 {[%clk 0:03:02.9]} 14... Qb6 {[%clk 0:02:51.9]} 15.
O-O-O {[%clk 0:03:03]} 15... a5 {[%clk 0:02:49.1]} 16. Rhe1 {[%clk 0:02:59.4]}
16... a4 {[%clk 0:02:47.8]} 17. Ne5 {[%clk 0:02:58.9]} 17... Bxe5 {[%clk
0:02:41.5]} 18. Rxe5 {[%clk 0:02:55.3]} 18... Nd5 {[%clk 0:02:21.1]} 19. Re4
{[%clk 0:02:38.3]} 19... Nf6 {[%clk 0:02:02.9]} 20. Re5 {[%clk 0:02:34.4]} 20...
Nd5 {[%clk 0:02:02.8]} 21. Kb1 {[%clk 0:02:26.9]} 21... Qd8 {[%clk 0:01:53.6]}
22. Qg3 {[%clk 0:02:25.3]} 22... Qf6 {[%clk 0:01:51.1]} 23. c4 {[%clk
0:01:57.4]} 23... Ne7 {[%clk 0:01:50.9]} 24. Bb4 {[%clk 0:01:48]} 24... Nf5
{[%clk 0:01:49.7]} 25. Qd3 {[%clk 0:01:43.4]} 25... Rd8 {[%clk 0:01:31]} 26. Qe4
{[%clk 0:01:43.8]} 26... Nd6 {[%clk 0:01:22.9]} 27. Qe2 {[%clk 0:01:36.9]} 27...
b5 {[%clk 0:01:10.1]} 28. cxb5 {[%clk 0:01:34]} 28... Nxb5 {[%clk 0:01:08]} 29.
Bc5 {[%clk 0:01:34.9]} 29... a3 {[%clk 0:01:02.3]} 30. Qe4 {[%clk 0:01:30.2]}
30... Rd5 {[%clk 0:00:57.1]} 31. Rxd5 {[%clk 0:01:28.2]} 31... cxd5 {[%clk
0:00:57.9]} 32. Qd3 {[%clk 0:01:28.8]} 32... Qf5 {[%clk 0:00:53.3]} 33. Qxf5
{[%clk 0:01:26.7]} 33... exf5 {[%clk 0:00:54.1]} 34. Re1+ {[%clk 0:01:27.7]}
34... Kd8 {[%clk 0:00:52.9]} 35. bxa3 {[%clk 0:01:27]} 35... Nc3+ {[%clk
0:00:52.9]} 36. Kc2 {[%clk 0:01:26.4]} 36... Ne4 {[%clk 0:00:54]} 37. Bb4 {[%clk
0:01:23.7]} 37... Nxf2 {[%clk 0:00:51.2]} 38. Re5 {[%clk 0:01:24.3]} 38... Ng4
{[%clk 0:00:46.9]} 39. Rxd5+ {[%clk 0:01:23.8]} 39... Kc7 {[%clk 0:00:47.5]} 40.
Rxf5 {[%clk 0:01:09.8]} 40... Ne3+ {[%clk 0:00:47.7]} 41. Kd3 {[%clk 0:01:10.2]}
41... Nxf5 {[%clk 0:00:49.2]} 42. d5 {[%clk 0:01:11.1]} 42... Rd8 {[%clk
0:00:47.8]} 43. Ke4 {[%clk 0:01:11]} 43... Nd6+ {[%clk 0:00:47.1]} 0-1

[Event "*** Titled Tuesday Blitz"]
[Site "Chess.com"]
[Date "2018.09.04"]
[Round "5"]
[White "TastyFrenchFries"]
[Black "Saitama_Hero"]
[Result "1-0"]
[WhiteElo "2364"]
[BlackElo "2191"]
[TimeControl "180+2"]
[EndTime "14:41:31 PDT"]
[Termination "TastyFrenchFries won by resignation"]

1. e4 {[%clk 0:02:55.4]} 1... d6 {[%clk 0:02:59.7]} 2. Na3 {[%clk 0:02:54.5]}
2... g6 {[%clk 0:03:01.6]} 3. c3 {[%clk 0:02:55.2]} 3... Nf6 {[%clk 0:03:02.7]}
4. Qe2 {[%clk 0:02:53.8]} 4... Bg7 {[%clk 0:03:03.6]} 5. g3 {[%clk 0:02:54.4]}
5... c5 {[%clk 0:02:58.5]} 6. Bg2 {[%clk 0:02:47.2]} 6... Nc6 {[%clk 0:02:59.1]}
7. Nf3 {[%clk 0:02:46.2]} 7... O-O {[%clk 0:02:59.9]} 8. O-O {[%clk 0:02:45.6]}
8... a6 {[%clk 0:03:00.7]} 9. d4 {[%clk 0:02:44.7]} 9... cxd4 {[%clk 0:02:59.8]}
10. cxd4 {[%clk 0:02:46.6]} 10... Bg4 {[%clk 0:02:51.7]} 11. Qe3 {[%clk
0:02:38.8]} 11... b5 {[%clk 0:02:47.1]} 12. d5 {[%clk 0:02:34.7]} 12... Na5
{[%clk 0:02:31]} 13. h3 {[%clk 0:02:29.5]} 13... Bxf3 {[%clk 0:02:31]} 14. Bxf3
{[%clk 0:02:24.9]} 14... Nd7 {[%clk 0:02:32.9]} 15. Qe2 {[%clk 0:02:22]} 15...
Ne5 {[%clk 0:02:16.9]} 16. Bg2 {[%clk 0:02:21.7]} 16... Qd7 {[%clk 0:01:47.1]}
17. Bf4 {[%clk 0:02:13]} 17... Rfc8 {[%clk 0:01:35.4]} 18. Rac1 {[%clk
0:02:04.6]} 18... b4 {[%clk 0:01:34.9]} 19. Nb1 {[%clk 0:02:01.2]} 19... Qb5
{[%clk 0:01:04.6]} 20. Rxc8+ {[%clk 0:01:58]} 20... Rxc8 {[%clk 0:01:04.2]} 21.
Qxb5 {[%clk 0:01:58.1]} 21... axb5 {[%clk 0:01:06.1]} 22. Rc1 {[%clk 0:01:57.9]}
22... Rxc1+ {[%clk 0:01:02.4]} 23. Bxc1 {[%clk 0:01:59.8]} 23... Nd3 {[%clk
0:01:02.1]} 24. Bg5 {[%clk 0:01:57.7]} 24... Bf6 {[%clk 0:00:38.8]} 25. Bxf6
{[%clk 0:01:37.7]} 25... exf6 {[%clk 0:00:40.7]} 26. Bf1 {[%clk 0:01:35.1]}
26... Nxb2 {[%clk 0:00:31.5]} 27. Bxb5 {[%clk 0:01:33.8]} 27... Nac4 {[%clk
0:00:31.4]} 28. Kg2 {[%clk 0:01:28.3]} 28... Na3 {[%clk 0:00:18.9]} 29. Nxa3
{[%clk 0:01:25]} 29... bxa3 {[%clk 0:00:20.8]} 30. Kf3 {[%clk 0:01:23.9]} 30...
Nd1 {[%clk 0:00:21]} 31. Bc4 {[%clk 0:01:21.9]} 31... Nc3 {[%clk 0:00:16.1]} 32.
Ke3 {[%clk 0:01:16.7]} 32... Kf8 {[%clk 0:00:17.5]} 33. Kd3 {[%clk 0:01:12.5]}
33... Nd1 {[%clk 0:00:16.3]} 34. Ke2 {[%clk 0:01:09.6]} 34... Nc3+ {[%clk
0:00:15.8]} 35. Ke3 {[%clk 0:01:09.7]} 35... Ke7 {[%clk 0:00:13.9]} 36. f3
{[%clk 0:01:05.6]} 36... Kd8 {[%clk 0:00:15.2]} 37. Kd2 {[%clk 0:01:07]} 37...
Na4 {[%clk 0:00:13.3]} 38. Kc2 {[%clk 0:01:08.3]} 38... Nc5 {[%clk 0:00:13.7]}
39. Kc3 {[%clk 0:01:07.5]} 39... Kc7 {[%clk 0:00:13.5]} 40. Kb4 {[%clk
0:01:07.4]} 40... Kb6 {[%clk 0:00:15.4]} 41. Kxa3 {[%clk 0:01:08.4]} 41... Ka5
{[%clk 0:00:17.3]} 42. Be2 {[%clk 0:01:04.9]} 42... Nd7 {[%clk 0:00:17.3]} 43.
Kb3 {[%clk 0:01:05]} 43... Nc5+ {[%clk 0:00:17.8]} 44. Kc3 {[%clk 0:01:05.3]}
44... Na4+ {[%clk 0:00:19.3]} 45. Kd4 {[%clk 0:01:05]} 45... Nc5 {[%clk
0:00:19.2]} 46. Kc4 {[%clk 0:00:59.2]} 46... Ka4 {[%clk 0:00:18.2]} 47. Bd1+
{[%clk 0:01:00.3]} 47... Ka3 {[%clk 0:00:18.5]} 48. Kb5 {[%clk 0:01:01.4]} 48...
Nd3 {[%clk 0:00:04.4]} 49. Be2 {[%clk 0:00:51.6]} 49... Ne5 {[%clk 0:00:06.3]}
50. f4 {[%clk 0:00:50.6]} 50... Nd7 {[%clk 0:00:07.2]} 51. Kc6 {[%clk
0:00:51.3]} 51... Nc5 {[%clk 0:00:08.6]} 52. Bf3 {[%clk 0:00:52.6]} 52... Nd3
{[%clk 0:00:05.3]} 53. Kxd6 {[%clk 0:00:52.3]} 53... Ne1 {[%clk 0:00:06.8]} 54.
Be2 {[%clk 0:00:50.8]} 1-0

[Event "*** Titled Tuesday Blitz"]
[Site "Chess.com"]
[Date "2018.09.04"]
[Round "5"]
[White "Superfelix"]
[Black "W_Amadeus"]
[Result "0-1"]
[WhiteElo "2366"]
[BlackElo "2567"]
[TimeControl "180+2"]
[EndTime "14:41:33 PDT"]
[Termination "W_Amadeus won by resignation"]

1. e4 {[%clk 0:03:01.9]} 1... d6 {[%clk 0:03:01.9]} 2. Bc4 {[%clk 0:03:00.9]}
2... Nf6 {[%clk 0:03:00.8]} 3. Qe2 {[%clk 0:03:01.6]} 3... e5 {[%clk 0:02:54.7]}
4. f4 {[%clk 0:02:58.5]} 4... Nc6 {[%clk 0:02:45.5]} 5. Nf3 {[%clk 0:02:53.5]}
5... exf4 {[%clk 0:02:35.4]} 6. d4 {[%clk 0:02:52.7]} 6... Bg4 {[%clk
0:02:36.2]} 7. c3 {[%clk 0:02:52.4]} 7... Nh5 {[%clk 0:02:36.6]} 8. Nbd2 {[%clk
0:02:40.4]} 8... g6 {[%clk 0:02:32.1]} 9. O-O {[%clk 0:02:08.6]} 9... Bg7 {[%clk
0:02:31.1]} 10. Qf2 {[%clk 0:01:55.1]} 10... O-O {[%clk 0:02:30]} 11. h3 {[%clk
0:01:50.6]} 11... Bd7 {[%clk 0:02:23.8]} 12. Re1 {[%clk 0:01:48.7]} 12... Kh8
{[%clk 0:02:09.7]} 13. Nf1 {[%clk 0:01:46.9]} 13... Qe7 {[%clk 0:02:04.5]} 14.
Bd2 {[%clk 0:01:41.3]} 14... Rae8 {[%clk 0:02:02.2]} 15. Re2 {[%clk 0:01:40.8]}
15... a6 {[%clk 0:01:49.5]} 16. Rae1 {[%clk 0:01:41.3]} 16... Qd8 {[%clk
0:01:50.4]} 17. a3 {[%clk 0:01:39.9]} 17... Na5 {[%clk 0:01:34.6]} 18. Ba2
{[%clk 0:01:40.5]} 18... Bb5 {[%clk 0:01:33]} 19. c4 {[%clk 0:01:32.8]} 19...
Nxc4 {[%clk 0:01:33.7]} 20. a4 {[%clk 0:01:28.5]} 20... Nxd2 {[%clk 0:01:32.9]}
21. axb5 {[%clk 0:01:29.5]} 21... Nxf1 {[%clk 0:01:28.2]} 22. Rxf1 {[%clk
0:01:26.4]} 22... Ng3 {[%clk 0:01:20.6]} 23. bxa6 {[%clk 0:01:26.9]} 23... bxa6
{[%clk 0:01:21]} 24. Rfe1 {[%clk 0:01:27.7]} 24... Nxe2+ {[%clk 0:01:21.1]} 25.
Rxe2 {[%clk 0:01:29.6]} 25... h6 {[%clk 0:01:00.5]} 26. h4 {[%clk 0:01:29.5]}
26... Qb8 {[%clk 0:00:55.4]} 27. h5 {[%clk 0:01:28.3]} 27... g5 {[%clk
0:00:55.9]} 28. Nh2 {[%clk 0:01:10.2]} 28... c5 {[%clk 0:00:39.5]} 29. dxc5
{[%clk 0:01:08.6]} 29... dxc5 {[%clk 0:00:41.4]} 30. Qxc5 {[%clk 0:01:09.1]}
30... Rc8 {[%clk 0:00:42.3]} 31. Qd5 {[%clk 0:00:45.8]} 31... Qb6+ {[%clk
0:00:26.6]} 32. Kf1 {[%clk 0:00:46.3]} 32... Rc1+ {[%clk 0:00:25.6]} 33. Re1
{[%clk 0:00:46.3]} 33... Rxe1+ {[%clk 0:00:20.8]} 34. Kxe1 {[%clk 0:00:46.8]}
34... Qe3+ {[%clk 0:00:21.9]} 35. Kf1 {[%clk 0:00:44.1]} 35... Qc1+ {[%clk
0:00:22.7]} 36. Kf2 {[%clk 0:00:38.1]} 36... Qxb2+ {[%clk 0:00:22.3]} 37. Kf3
{[%clk 0:00:39.3]} 37... Qc3+ {[%clk 0:00:20.3]} 38. Ke2 {[%clk 0:00:39.7]}
38... Qe3+ {[%clk 0:00:19.7]} 39. Kf1 {[%clk 0:00:40.7]} 39... Rc8 {[%clk
0:00:16.2]} 40. Bb3 {[%clk 0:00:31.4]} 40... Rc1+ {[%clk 0:00:11.3]} 41. Bd1
{[%clk 0:00:32.4]} 41... Qd4 {[%clk 0:00:10.4]} 42. Qxd4 {[%clk 0:00:30.8]}
42... Bxd4 {[%clk 0:00:11.1]} 43. Ke2 {[%clk 0:00:32.7]} 43... f6 {[%clk
0:00:10.9]} 44. Nf3 {[%clk 0:00:33.7]} 44... Be5 {[%clk 0:00:11.9]} 45. Kd2
{[%clk 0:00:33.8]} 45... Rc7 {[%clk 0:00:12.1]} 46. Be2 {[%clk 0:00:35]} 46...
a5 {[%clk 0:00:12.3]} 47. Ne1 {[%clk 0:00:35.1]} 47... a4 {[%clk 0:00:12.8]} 48.
Nc2 {[%clk 0:00:36]} 48... Bb2 {[%clk 0:00:08]} 49. Nb4 {[%clk 0:00:33.4]} 49...
Bc3+ {[%clk 0:00:07.9]} 0-1

[Event "*** Titled Tuesday Blitz"]
[Site "Chess.com"]
[Date "2018.09.04"]
[Round "5"]
[White "Rashad_Zeynalli"]
[Black "tsakos2731"]
[Result "0-1"]
[WhiteElo "2363"]
[BlackElo "2546"]
[TimeControl "180+2"]
[EndTime "14:41:38 PDT"]
[Termination "tsakos2731 won by resignation"]

1. e4 {[%clk 0:03:01.9]} 1... e5 {[%clk 0:02:59.5]} 2. Nf3 {[%clk 0:03:02.2]}
2... Nf6 {[%clk 0:02:59.9]} 3. Nxe5 {[%clk 0:03:02.2]} 3... d6 {[%clk
0:03:01.3]} 4. Nf3 {[%clk 0:03:03.5]} 4... Nxe4 {[%clk 0:03:01.8]} 5. d4 {[%clk
0:03:05.1]} 5... d5 {[%clk 0:03:01.9]} 6. Bd3 {[%clk 0:03:06.6]} 6... Bf5 {[%clk
0:03:02.8]} 7. O-O {[%clk 0:03:01.3]} 7... Be7 {[%clk 0:03:02.6]} 8. c4 {[%clk
0:03:01.8]} 8... dxc4 {[%clk 0:02:59.4]} 9. Bxc4 {[%clk 0:03:02.5]} 9... O-O
{[%clk 0:02:57]} 10. Nc3 {[%clk 0:03:03.5]} 10... Nc6 {[%clk 0:02:57.5]} 11. Re1
{[%clk 0:03:00.6]} 11... Nxc3 {[%clk 0:02:54.4]} 12. bxc3 {[%clk 0:03:02.5]}
12... Qd7 {[%clk 0:02:50.4]} 13. Bb5 {[%clk 0:02:36.3]} 13... Bf6 {[%clk
0:02:42.5]} 14. Ne5 {[%clk 0:02:19.8]} 14... Bxe5 {[%clk 0:02:40]} 15. Rxe5
{[%clk 0:02:20]} 15... Rfe8 {[%clk 0:02:41.2]} 16. Bf4 {[%clk 0:01:35.8]} 16...
Rxe5 {[%clk 0:02:36.3]} 17. Bxe5 {[%clk 0:01:35.9]} 17... Qd5 {[%clk 0:02:37.3]}
18. c4 {[%clk 0:01:36]} 18... Qe4 {[%clk 0:02:38.4]} 19. Bxc6 {[%clk 0:01:08.6]}
19... Qxc6 {[%clk 0:02:40.3]} 20. Qb3 {[%clk 0:01:03.3]} 20... Re8 {[%clk
0:02:34.5]} 21. h4 {[%clk 0:00:59.2]} 21... f6 {[%clk 0:02:25.6]} 22. Bg3 {[%clk
0:00:59.1]} 22... Qe4 {[%clk 0:02:22.4]} 23. d5 {[%clk 0:00:47.7]} 23... Qd4
{[%clk 0:02:18.1]} 24. Rd1 {[%clk 0:00:46.4]} 24... Qc5 {[%clk 0:02:19.4]} 25.
Qxb7 {[%clk 0:00:40.2]} 25... Qxc4 {[%clk 0:02:20.6]} 26. Qxc7 {[%clk
0:00:24.9]} 26... Qxa2 {[%clk 0:02:17.9]} 27. d6 {[%clk 0:00:24.5]} 27... Qa4
{[%clk 0:02:18.5]} 28. Rc1 {[%clk 0:00:17.4]} 28... h6 {[%clk 0:01:56.3]} 29.
Kh2 {[%clk 0:00:18.2]} 29... Rc8 {[%clk 0:01:53.7]} 30. Qxc8+ {[%clk 0:00:16.6]}
30... Bxc8 {[%clk 0:01:54]} 31. Rxc8+ {[%clk 0:00:18.5]} 31... Kh7 {[%clk
0:01:50.2]} 32. Rc7 {[%clk 0:00:19.9]} 32... a6 {[%clk 0:01:47.1]} 33. d7 {[%clk
0:00:20.1]} 33... Qd4 {[%clk 0:01:43.6]} 34. Ra7 {[%clk 0:00:20.2]} 34... a5
{[%clk 0:01:36.9]} 35. Kh3 {[%clk 0:00:20.4]} 35... h5 {[%clk 0:01:34.2]} 36. f3
{[%clk 0:00:17.5]} 36... a4 {[%clk 0:01:33.2]} 37. Bf2 {[%clk 0:00:18.3]} 37...
Qxf2 {[%clk 0:01:30]} 38. d8=Q {[%clk 0:00:18.6]} 38... Qxa7 {[%clk 0:01:30.7]}
39. Qd3+ {[%clk 0:00:19.2]} 39... g6 {[%clk 0:01:21.1]} 40. Qa3 {[%clk
0:00:19.6]} 40... Kg8 {[%clk 0:01:10]} 41. g3 {[%clk 0:00:20.6]} 41... Qg1
{[%clk 0:01:07.9]} 42. g4 {[%clk 0:00:20.4]} 42... hxg4+ {[%clk 0:01:03.8]} 43.
fxg4 {[%clk 0:00:22.3]} 43... Qh1+ {[%clk 0:01:05.1]} 44. Kg3 {[%clk 0:00:23.3]}
44... Qe1+ {[%clk 0:01:04.7]} 45. Kh3 {[%clk 0:00:23.3]} 45... Qe4 {[%clk
0:01:05.3]} 46. h5 {[%clk 0:00:19.4]} 46... g5 {[%clk 0:01:04.3]} 47. Kg3 {[%clk
0:00:14.3]} 47... Qf4+ {[%clk 0:01:01.8]} 48. Kh3 {[%clk 0:00:15.3]} 48... Qf1+
{[%clk 0:01:01.3]} 49. Kg3 {[%clk 0:00:15.9]} 49... Qg1+ {[%clk 0:01:00.1]} 50.
Kh3 {[%clk 0:00:17.1]} 50... Qh1+ {[%clk 0:00:59.7]} 51. Kg3 {[%clk 0:00:18.3]}
51... Qh4+ {[%clk 0:00:59.7]} 52. Kg2 {[%clk 0:00:18.7]} 52... Qxg4+ {[%clk
0:01:00.2]} 53. Kf2 {[%clk 0:00:20.2]} 53... Qxh5 {[%clk 0:00:58.8]} 54. Qxa4
{[%clk 0:00:20.3]} 54... Qh4+ {[%clk 0:00:58.3]} 55. Qxh4 {[%clk 0:00:21.3]}
55... gxh4 {[%clk 0:00:59.3]} 56. Kf3 {[%clk 0:00:22.9]} 56... f5 {[%clk
0:00:57.2]} 57. Kf4 {[%clk 0:00:23.8]} 57... Kg7 {[%clk 0:00:56.9]} 58. Kf3
{[%clk 0:00:20.4]} 58... Kg6 {[%clk 0:00:57.7]} 0-1

[Event "*** Titled Tuesday Blitz"]
[Site "Chess.com"]
[Date "2018.09.04"]
[Round "5"]
[White "danyuffa"]
[Black "XDPS"]
[Result "1-0"]
[WhiteElo "2689"]
[BlackElo "2597"]
[TimeControl "180+2"]
[EndTime "14:41:57 PDT"]
[Termination "danyuffa won by resignation"]

1. d4 {[%clk 0:02:49.4]} 1... d5 {[%clk 0:02:59.9]} 2. c4 {[%clk 0:02:50.1]}
2... c6 {[%clk 0:03:00.8]} 3. Nc3 {[%clk 0:02:51.1]} 3... Nf6 {[%clk 0:03:02]}
4. Nf3 {[%clk 0:02:52.6]} 4... e6 {[%clk 0:03:02.7]} 5. Bg5 {[%clk 0:02:53]}
5... dxc4 {[%clk 0:03:03.8]} 6. e4 {[%clk 0:02:53.7]} 6... b5 {[%clk 0:03:04.8]}
7. e5 {[%clk 0:02:53.9]} 7... h6 {[%clk 0:03:06.2]} 8. Bh4 {[%clk 0:02:54.8]}
8... g5 {[%clk 0:03:05.6]} 9. Nxg5 {[%clk 0:02:56.2]} 9... hxg5 {[%clk
0:03:07.5]} 10. Bxg5 {[%clk 0:02:57.3]} 10... Nbd7 {[%clk 0:03:09]} 11. exf6
{[%clk 0:02:58.6]} 11... Bb7 {[%clk 0:03:09.4]} 12. g3 {[%clk 0:02:58.6]} 12...
c5 {[%clk 0:03:10.3]} 13. d5 {[%clk 0:02:59.5]} 13... Nxf6 {[%clk 0:03:11.8]}
14. Bg2 {[%clk 0:02:56.7]} 14... Be7 {[%clk 0:03:12.6]} 15. O-O {[%clk 0:02:49]}
15... Nxd5 {[%clk 0:03:12.7]} 16. Bxe7 {[%clk 0:02:48.3]} 16... Kxe7 {[%clk
0:03:14.6]} 17. Nxb5 {[%clk 0:02:46]} 17... Qb6 {[%clk 0:03:15.3]} 18. a4 {[%clk
0:02:39.6]} 18... Rh4 {[%clk 0:02:42.2]} 19. Re1 {[%clk 0:02:18.2]} 19... Rd8
{[%clk 0:01:08.3]} 20. gxh4 {[%clk 0:02:05.6]} 20... Rg8 {[%clk 0:01:07.4]} 21.
Qd2 {[%clk 0:01:27.7]} 21... a6 {[%clk 0:00:40.5]} 22. Ra3 {[%clk 0:01:08.7]}
22... c3 {[%clk 0:00:35.6]} 23. Nxc3 {[%clk 0:00:58.2]} 23... Nxc3 {[%clk
0:00:32]} 24. Rxc3 {[%clk 0:00:58.6]} 24... Rxg2+ {[%clk 0:00:32.9]} 25. Kf1
{[%clk 0:00:59.1]} 25... Rxh2 {[%clk 0:00:28.2]} 26. Qg5+ {[%clk 0:00:53.3]}
26... Ke8 {[%clk 0:00:27.2]} 27. Qg8+ {[%clk 0:00:43.3]} 27... Ke7 {[%clk
0:00:27.9]} 28. Qg5+ {[%clk 0:00:44.2]} 28... Ke8 {[%clk 0:00:29.1]} 29. Rd1
{[%clk 0:00:20.5]} 29... Rh1+ {[%clk 0:00:20.2]} 30. Ke2 {[%clk 0:00:21.6]}
30... Rxd1 {[%clk 0:00:14]} 31. Kxd1 {[%clk 0:00:21.6]} 31... Qxb2 {[%clk
0:00:15.5]} 32. Qxc5 {[%clk 0:00:22.9]} 32... Qb1+ {[%clk 0:00:13.9]} 33. Ke2
{[%clk 0:00:23.4]} 33... Qe4+ {[%clk 0:00:12.1]} 34. Kd2 {[%clk 0:00:22.6]}
34... Qf4+ {[%clk 0:00:11.6]} 35. Kc2 {[%clk 0:00:21.7]} 35... Be4+ {[%clk
0:00:12.4]} 36. Kb2 {[%clk 0:00:22.1]} 36... Qd2+ {[%clk 0:00:13.1]} 37. Ka3
{[%clk 0:00:22.4]} 37... Bd5 {[%clk 0:00:10.8]} 38. h5 {[%clk 0:00:20.5]} 38...
a5 {[%clk 0:00:07]} 39. Qxa5 {[%clk 0:00:21.1]} 39... Qa2+ {[%clk 0:00:07.4]}
40. Kb4 {[%clk 0:00:21.9]} 40... Qb2+ {[%clk 0:00:06.7]} 41. Kc5 {[%clk
0:00:23.1]} 41... Qxf2+ {[%clk 0:00:08.6]} 42. Kb5 {[%clk 0:00:19.1]} 42... Qb2+
{[%clk 0:00:08.8]} 43. Qb4 {[%clk 0:00:18.5]} 43... Qe2+ {[%clk 0:00:10.3]} 44.
Ka5 {[%clk 0:00:19.6]} 44... Qxh5 {[%clk 0:00:11.4]} 45. Qb8+ {[%clk 0:00:18.2]}
45... Ke7 {[%clk 0:00:12.1]} 46. Rc7+ {[%clk 0:00:18.5]} 46... Kf6 {[%clk
0:00:13.1]} 47. Qb5 {[%clk 0:00:18.5]} 47... Qh4 {[%clk 0:00:11.6]} 48. Qf1+
{[%clk 0:00:18.5]} 48... Kg7 {[%clk 0:00:11.4]} 49. Qxf7+ {[%clk 0:00:19.2]}
49... Kh6 {[%clk 0:00:11.8]} 50. Qh7+ {[%clk 0:00:20.3]} 1-0

[Event "*** Titled Tuesday Blitz"]
[Site "Chess.com"]
[Date "2018.09.04"]
[Round "5"]
[White "tony15051987"]
[Black "ddtru"]
[Result "1-0"]
[WhiteElo "2447"]
[BlackElo "2266"]
[TimeControl "180+2"]
[EndTime "14:41:59 PDT"]
[Termination "tony15051987 won on time"]

1. d4 {[%clk 0:03:00.3]} 1... Nf6 {[%clk 0:03:00.2]} 2. c4 {[%clk 0:03:01.1]}
2... e6 {[%clk 0:03:00.5]} 3. Nc3 {[%clk 0:03:01.3]} 3... d5 {[%clk 0:03:01.3]}
4. cxd5 {[%clk 0:02:59.6]} 4... Nxd5 {[%clk 0:03:01.9]} 5. e4 {[%clk 0:02:59.9]}
5... Nxc3 {[%clk 0:03:02.7]} 6. bxc3 {[%clk 0:03:01]} 6... c5 {[%clk 0:03:03.7]}
7. Rb1 {[%clk 0:02:59]} 7... cxd4 {[%clk 0:02:56.2]} 8. cxd4 {[%clk 0:02:59.9]}
8... Nc6 {[%clk 0:02:56.5]} 9. Nf3 {[%clk 0:03:00.4]} 9... Bb4+ {[%clk
0:02:49.2]} 10. Bd2 {[%clk 0:03:00.7]} 10... Bxd2+ {[%clk 0:02:49.9]} 11. Qxd2
{[%clk 0:03:01.6]} 11... O-O {[%clk 0:02:50.9]} 12. Bc4 {[%clk 0:03:02]} 12...
b6 {[%clk 0:02:50.1]} 13. O-O {[%clk 0:03:02.3]} 13... Bb7 {[%clk 0:02:47.7]}
14. Rfe1 {[%clk 0:02:57.9]} 14... Rc8 {[%clk 0:02:47.5]} 15. Rbd1 {[%clk
0:02:55.2]} 15... Qc7 {[%clk 0:02:38.4]} 16. Bd3 {[%clk 0:02:44.5]} 16... Ne7
{[%clk 0:02:37.5]} 17. h4 {[%clk 0:02:39.6]} 17... Ng6 {[%clk 0:02:28.6]} 18. g3
{[%clk 0:02:21.4]} 18... h6 {[%clk 0:02:28]} 19. h5 {[%clk 0:02:21]} 19... Ne7
{[%clk 0:02:28.9]} 20. Qe3 {[%clk 0:01:54.7]} 20... Qc3 {[%clk 0:01:43.4]} 21.
g4 {[%clk 0:01:37.7]} 21... f6 {[%clk 0:01:24.7]} 22. Rc1 {[%clk 0:01:15.4]}
22... Qa3 {[%clk 0:01:24.2]} 23. Bc4 {[%clk 0:01:13.9]} 23... Qd6 {[%clk
0:01:12.3]} 24. Qb3 {[%clk 0:01:10.5]} 24... Kh8 {[%clk 0:01:01.1]} 25. Rcd1
{[%clk 0:01:00]} 25... Qf4 {[%clk 0:00:48.2]} 26. Bxe6 {[%clk 0:00:41.2]} 26...
Bxe4 {[%clk 0:00:48.4]} 27. Rxe4 {[%clk 0:00:19.8]} 27... Qxe4 {[%clk
0:00:48.4]} 28. Re1 {[%clk 0:00:20.8]} 28... Qf4 {[%clk 0:00:39.6]} 29. Bxc8
{[%clk 0:00:17.7]} 29... Nxc8 {[%clk 0:00:31]} 30. Nh4 {[%clk 0:00:16.5]} 30...
Qxg4+ {[%clk 0:00:30.7]} 31. Qg3 {[%clk 0:00:17.2]} 31... Qxg3+ {[%clk
0:00:29.5]} 32. fxg3 {[%clk 0:00:18.4]} 32... Rd8 {[%clk 0:00:28.1]} 33. Ng6+
{[%clk 0:00:18.6]} 33... Kg8 {[%clk 0:00:28.7]} 34. d5 {[%clk 0:00:19.6]} 34...
Kf7 {[%clk 0:00:22.6]} 35. Rc1 {[%clk 0:00:20.1]} 35... Nd6 {[%clk 0:00:12.9]}
36. Rc7+ {[%clk 0:00:20.5]} 36... Kg8 {[%clk 0:00:12.9]} 37. Rxa7 {[%clk
0:00:20.9]} 37... Nf5 {[%clk 0:00:13.4]} 38. g4 {[%clk 0:00:21.4]} 38... Ne3
{[%clk 0:00:13.9]} 39. Ne7+ {[%clk 0:00:21.8]} 39... Kh8 {[%clk 0:00:12.1]} 40.
Kf2 {[%clk 0:00:22.1]} 40... Nxd5 {[%clk 0:00:12.2]} 41. Nf5 {[%clk 0:00:23]}
41... Nf4 {[%clk 0:00:09]} 42. Nxg7 {[%clk 0:00:21.8]} 42... Rg8 {[%clk
0:00:08.5]} 43. Nf5 {[%clk 0:00:22.1]} 43... Nd3+ {[%clk 0:00:08.4]} 44. Ke3
{[%clk 0:00:22.2]} 44... Ne5 {[%clk 0:00:09.2]} 45. Rb7 {[%clk 0:00:17.7]} 45...
Nxg4+ {[%clk 0:00:06.8]} 46. Kf4 {[%clk 0:00:17.9]} 46... Ne5 {[%clk 0:00:07.5]}
47. Nxh6 {[%clk 0:00:18.4]} 47... Rc8 {[%clk 0:00:07]} 48. Rxb6 {[%clk
0:00:17.8]} 48... Rc4+ {[%clk 0:00:03.4]} 49. Kf5 {[%clk 0:00:18.5]} 49... Ra4
{[%clk 0:00:04.2]} 50. Rxf6 {[%clk 0:00:18.4]} 50... Nd7 {[%clk 0:00:03.6]} 51.
Rd6 {[%clk 0:00:18.8]} 1-0